fUSD/lending_fUSD_20250616
["ID","MTS","AMOUNT","RATE_DAILY","PERIOD"]
[366117132,1750073432105,-500.0,0.00015973,2]
[366117134,1750073432115,-500.0,0.00015973,2]
[366117136,1750073432125,-500.0,0.00015973,2]
[366117138,1750073432137,-500.0,0.00015973,2]
[366117140,1750073432147,-500.0,0.00015973,2]
[366117142,1750073432157,-256.91462405,0.00015973,2]
[366117147,1750073432196,-243.08537595,0.00015973,2]
[366117149,1750073432206,-500.0,0.00015973,2]
[366117151,1750073432216,-500.0,0.00015973,2]
[366117153,1750073432225,-501.51225792,0.00015973,2]
[366117155,1750073432235,-500.0,0.00015973,2]
[366117157,1750073432245,-500.0,0.00015973,2]
[366117159,1750073432254,-500.0,0.00015973,2]
[366117161,1750073432264,-500.0,0.00015973,2]
[366117163,1750073432273,-518.4311353,0.00015973,2]
[366117165,1750073432283,-500.46754569,0.00015973,2]
[366117167,1750073432293,-150.4,0.0001599,2]
[366117169,1750073432302,-150.4,0.0001599,2]
[366117171,1750073432314,-150.4,0.0001599,2]
[366117173,1750073432325,-150.4,0.0001599,2]
[366117175,1750073432334,-150.4,0.0001599,2]
[366117177,1750073432344,-150.4,0.0001599,2]
[366117179,1750073432353,-150.4,0.0001599,2]
[366117181,1750073432363,-150.4,0.0001599,2]
[366117183,1750073432373,-150.4,0.0001599,2]
[366117185,1750073432384,-150.4,0.0001599,2]
[366117188,1750073432395,-150.4,0.0001599,2]
[366117190,1750073432404,-150.4,0.0001599,2]
[366117191,1750073432414,-150.4,0.0001599,2]
[366117193,1750073432423,-150.4,0.0001599,2]
[366117195,1750073432434,-150.4,0.0001599,2]
[366117197,1750073432444,-150.4,0.0001599,2]
[366117200,1750073432454,-150.4,0.0001599,2]
[366117201,1750073432464,-150.4,0.0001599,2]
[366117203,1750073432473,-150.4,0.0001599,2]
[366117205,1750073432482,-150.4,0.0001599,2]
[366117207,1750073432491,-150.4,0.0001599,2]
[366117209,1750073432501,-150.4,0.0001599,2]
[366117211,1750073432511,-150.4,0.0001599,2]
[366117213,1750073432521,-151.0,0.0001599,2]
[366117215,1750073432531,-500.0,0.0001599,2]
[366117216,1750073432540,-500.0,0.0001599,2]
[366117217,1750073432549,-500.0,0.0001599,2]
[366117218,1750073432559,-500.0,0.0001599,2]
[366117219,1750073432568,-500.0,0.0001599,2]
[366117220,1750073432577,-500.0,0.0001599,2]
[366117221,1750073432587,-500.0,0.0001599,2]
[366117222,1750073432596,-500.0,0.0001599,2]
[366117223,1750073432606,-500.0,0.0001599,2]
[366117224,1750073432615,-500.0,0.0001599,2]
[366117225,1750073432625,-7160.11406399,0.00016,2]
[366117226,1750073437571,-2311.16,0.00016,2]
[366117227,1750073437731,-2419185.02031435,0.00016,2]
[366117228,1750073437741,-1227.46596631,0.00016004,2]
[366117229,1750073437751,-1181.8313105,0.00016032,2]
[366117230,1750073437760,-150.0,0.0001605,2]
[366117231,1750073437770,-1227.46596631,0.00016076,2]
[366117232,1750073437779,-1181.8313105,0.00016101,2]
[366117233,1750073437788,-176.80313314,0.0001612,2]
[366117234,1750073437797,-1227.46596631,0.00016148,2]
[366117235,1750073437807,-150.4,0.00016154,2]
[366117236,1750073437816,-500.0,0.00016164,2]
[366117237,1750073437827,-700.0,0.00016164,2]
[366117238,1750073437837,-1181.8313105,0.00016169,2]
[366117240,1750073437846,-163.46,0.00016192,2]
[366117242,1750073437856,-163.46,0.00016192,2]
[366117244,1750073437865,-163.34,0.00016192,2]
[366117245,1750073437875,-150.0,0.00016217,2]
[366117246,1750073437884,-1227.46596631,0.0001622,2]
[366117247,1750073437893,-182.84736909,0.00016236,2]
[366117248,1750073437903,-1181.8313105,0.00016238,2]
[366117249,1750073437912,-258.12131025,0.00016267,2]
[366117250,1750073437921,-930.40427,0.00016269,2]
[366117251,1750073437931,-176.80313314,0.00016276,2]
[366117252,1750073437940,-1227.46596631,0.00016292,2]
[366117253,1750073437950,-1181.8313105,0.00016306,2]
[366117254,1750073437959,-150.0,0.00016326,2]
[366117255,1750073437968,-150.0,0.00016336,2]
[366117256,1750073437977,-1228.406,0.00016338,2]
[366117257,1750073437987,-1000.0,0.00016339,2]
[366117258,1750073437997,-303.41,0.00016356,2]
[366117259,1750073438007,-300.86,0.00016356,2]
[366117260,1750073438017,-303.34,0.00016356,2]
[366117261,1750073438026,-300.04,0.00016356,2]
[366117262,1750073438036,-150.0,0.00016356,2]
[366117263,1750073438046,-150.0,0.00016357,2]
[366117265,1750073438056,-1227.46596631,0.00016364,2]
[366117266,1750073438066,-1181.8313105,0.00016375,2]
[366117267,1750073438076,-826.6461399,0.000164,2]
[366117268,1750073438085,-826.64613972,0.000164,2]
[366117269,1750073438095,-826.64613972,0.000164,2]
[366117270,1750073438104,-826.64613972,0.000164,2]
[366117271,1750073438114,-826.64613972,0.000164,2]
[366117272,1750073438123,-826.64613972,0.000164,2]
[366117273,1750073438133,-826.64613972,0.000164,2]
[366117274,1750073438143,-826.64613972,0.000164,2]
[366117275,1750073438152,-826.64613972,0.000164,2]
[366117276,1750073438161,-826.64613972,0.000164,2]
[366117277,1750073438171,-826.64613972,0.000164,2]
[366117278,1750073438180,-826.64613972,0.000164,2]
[366117279,1750073438189,-826.64613972,0.000164,2]
[366117280,1750073438198,-826.64613972,0.000164,2]
[366117281,1750073438207,-826.64613972,0.000164,2]
[366117282,1750073438216,-826.64613972,0.00016417,2]
[366117283,1750073438226,-150.4,0.00016428,2]
[366117284,1750073438235,-150.4,0.00016428,2]
[366117285,1750073438244,-150.4,0.00016428,2]
[366117286,1750073438253,-5930.84033103,0.00016428,2]
[366117287,1750073438262,-176.80313314,0.00016432,2]
[366117288,1750073438271,-1227.46596631,0.00016436,2]
[366117289,1750073438281,-155.0,0.00016437,2]
[366117290,1750073438291,-151.0,0.00016438,2]
[366117291,1750073438300,-723.929279,0.00016438,2]
[366117292,1750073438310,-723.929279,0.00016438,2]
[366117293,1750073438322,-151.0,0.00016438,2]
[366117294,1750073438332,-331.981144,0.00016438,2]
[366117295,1750073438341,-331.981144,0.00016438,2]
[366117296,1750073438350,-943.062475,0.00016438,2]
[366117297,1750073438359,-490.0,0.00016438,2]
[366117298,1750073438368,-943.062475,0.00016438,2]
[366117299,1750073438378,-317.582198,0.00016438,2]
[366117300,1750073438387,-317.582198,0.00016438,2]
[366117301,1750073438396,-296.60801,0.00016438,2]
[366117302,1750073438406,-296.60801,0.00016438,2]
[366117303,1750073438415,-935.36489,0.00016438,2]
[366117304,1750073438425,-151.0,0.00016438,2]
[366117305,1750073438434,-935.36489,0.00016438,2]
[366117306,1750073438443,-151.0,0.00016438,2]
[366117307,1750073438452,-490.0,0.00016438,2]
[366117308,1750073438461,-2199.675655,0.00016438,2]
[366117309,1750073438471,-264.61577739,0.00016438,2]
[366117310,1750073438480,-151.0,0.00016438,2]
[366117311,1750073438490,-490.0,0.00016438,2]
[366117312,1750073438499,-300.580708,0.00016438,2]
[366117313,1750073438508,-490.0,0.00016438,2]
[366117314,1750073438517,-490.0,0.00016438,2]
[366117315,1750073438527,-490.0,0.00016438,2]
[366117316,1750073438537,-490.0,0.00016438,2]
[366117317,1750073438546,-2846.004816,0.00016438,2]
[366117318,1750073438556,-490.0,0.00016438,2]
[366117319,1750073438567,-490.0,0.00016438,2]
[366117320,1750073438577,-189.297716,0.00016438,2]
[366117321,1750073438587,-490.0,0.00016438,2]
[366117322,1750073438596,-490.0,0.00016438,2]
[366117323,1750073438605,-560.93,0.00016438,2]
[366117324,1750073438614,-189.297716,0.00016438,2]
[366117325,1750073438623,-634.73715353,0.00016438,2]
[366117326,1750073438634,-490.0,0.00016438,2]
[366117327,1750073438643,-490.0,0.00016438,2]
[366117328,1750073438652,-490.0,0.00016438,2]
[366117329,1750073438662,-490.0,0.00016438,2]
[366117330,1750073438671,-490.0,0.00016438,2]
[366117331,1750073438681,-490.0,0.00016438,2]
[366117332,1750073438690,-490.0,0.00016438,2]
[366117333,1750073438699,-490.0,0.00016438,2]
[366117334,1750073438708,-490.0,0.00016438,2]
[366117335,1750073438717,-490.0,0.00016438,2]
[366117336,1750073438727,-490.0,0.00016438,2]
[366117337,1750073438737,-490.0,0.00016438,2]
[366117338,1750073438746,-490.0,0.00016438,2]
[366117339,1750073438756,-584.09661243,0.00016438,2]
[366117340,1750073438766,-490.0,0.00016438,2]
[366117341,1750073438775,-490.0,0.00016438,2]
[366117342,1750073438785,-603.89,0.00016438,2]
[366117343,1750073438794,-490.0,0.00016438,2]
[366117344,1750073438805,-250.0,0.00016438,2]
[366117345,1750073438814,-490.0,0.00016438,2]
[366117346,1750073438823,-490.0,0.00016438,2]
[366117347,1750073438833,-490.0,0.00016438,2]
[366117348,1750073438843,-490.0,0.00016438,2]
[366117349,1750073438852,-490.0,0.00016438,2]
[366117350,1750073438861,-533.93,0.00016438,2]
[366117351,1750073438871,-1148.01,0.00016438,2]
[366117352,1750073438881,-490.0,0.00016438,2]
[366117353,1750073438895,-490.0,0.00016438,2]
[366117354,1750073438906,-490.0,0.00016438,2]
[366117355,1750073438915,-460.67086211,0.00016438,2]
[366117356,1750073438925,-490.0,0.00016438,2]
[366117357,1750073438935,-490.0,0.00016438,2]
[366117358,1750073438944,-490.0,0.00016438,2]
[366117359,1750073438955,-490.0,0.00016438,2]
[366117360,1750073438964,-490.0,0.00016438,2]
[366117361,1750073438974,-490.0,0.00016438,2]
[366117362,1750073438985,-490.0,0.00016438,2]
[366117363,1750073438994,-496.58,0.00016438,2]
[366117364,1750073439003,-373.79987245,0.00016438,2]
[366117365,1750073439013,-490.0,0.00016438,2]
[366117366,1750073439021,-490.0,0.00016438,2]
[366117367,1750073439031,-534.62,0.00016438,2]
[366117368,1750073439041,-490.0,0.00016438,2]
[366117369,1750073439050,-490.0,0.00016438,2]
[366117370,1750073439059,-490.0,0.00016438,2]
[366117371,1750073439069,-490.0,0.00016438,2]
[366117372,1750073439079,-490.0,0.00016438,2]
[366117373,1750073439089,-490.0,0.00016438,2]
[366117374,1750073439100,-490.0,0.00016438,2]
[366117375,1750073439110,-490.0,0.00016438,2]
[366117376,1750073439119,-490.0,0.00016438,2]
[366117377,1750073439129,-490.0,0.00016438,2]
[366117378,1750073439139,-490.0,0.00016438,2]
[366117379,1750073439148,-405.66006389,0.00016438,2]
[366117380,1750073439157,-551.05,0.00016438,2]
[366117381,1750073439167,-490.0,0.00016438,2]
[366117382,1750073439177,-490.0,0.00016438,2]
[366117383,1750073439187,-490.0,0.00016438,2]
[366117384,1750073439198,-490.0,0.00016438,2]
[366117385,1750073439207,-490.0,0.00016438,2]
[366117386,1750073439217,-490.0,0.00016438,2]
[366117387,1750073439227,-490.0,0.00016438,2]
[366117388,1750073439236,-557.07575189,0.00016438,2]
[366117389,1750073439246,-490.0,0.00016438,2]
[366117390,1750073439255,-490.0,0.00016438,2]
[366117391,1750073439265,-490.0,0.00016438,2]
[366117392,1750073439275,-490.0,0.00016438,2]
[366117393,1750073439287,-490.0,0.00016438,2]
[366117394,1750073439298,-490.0,0.00016438,2]
[366117395,1750073439307,-532.69,0.00016438,2]
[366117396,1750073439319,-490.0,0.00016438,2]
[366117397,1750073439329,-490.0,0.00016438,2]
[366117398,1750073439338,-855.97,0.00016438,2]
[366117399,1750073439350,-490.0,0.00016438,2]
[366117400,1750073439360,-490.0,0.00016438,2]
[366117402,1750073439370,-490.0,0.00016438,2]
[366117403,1750073439379,-490.0,0.00016438,2]
[366117404,1750073439390,-490.0,0.00016438,2]
[366117405,1750073439402,-808.22,0.00016438,2]
[366117406,1750073439412,-490.0,0.00016438,2]
[366117407,1750073439422,-490.0,0.00016438,2]
[366117409,1750073439781,-490.0,0.00016438,2]
[366117410,1750073439791,-490.0,0.00016438,2]
[366117411,1750073439802,-490.0,0.00016438,2]
[366117412,1750073439812,-490.0,0.00016438,2]
[366117413,1750073439822,-490.0,0.00016438,2]
[366117414,1750073439831,-490.0,0.00016438,2]
[366117415,1750073439841,-490.0,0.00016438,2]
[366117416,1750073439851,-490.0,0.00016438,2]
[366117417,1750073439860,-490.0,0.00016438,2]
[366117418,1750073439870,-739.1,0.00016438,2]
[366117419,1750073439880,-490.0,0.00016438,2]
[366117420,1750073439890,-490.0,0.00016438,2]
[366117421,1750073439900,-490.0,0.00016438,2]
[366117422,1750073439910,-490.0,0.00016438,2]
[366117423,1750073439920,-490.0,0.00016438,2]
[366117424,1750073439930,-490.0,0.00016438,2]
[366117425,1750073439940,-490.0,0.00016438,2]
[366117426,1750073439950,-490.0,0.00016438,2]
[366117427,1750073439961,-490.0,0.00016438,2]
[366117428,1750073439971,-524.5,0.00016438,2]
[366117429,1750073439981,-502.20515958,0.00016438,2]
[366117430,1750073439991,-423.66342971,0.00016438,2]
[366117431,1750073440001,-490.0,0.00016438,2]
[366117432,1750073440011,-490.0,0.00016438,2]
[366117433,1750073440021,-490.0,0.00016438,2]
[366117434,1750073440031,-266.58323733,0.00016438,2]
[366117435,1750073440041,-490.0,0.00016438,2]
[366117436,1750073440050,-490.0,0.00016438,2]
[366117437,1750073440060,-490.0,0.00016438,2]
[366117438,1750073440070,-586.46,0.00016438,2]
[366117439,1750073440079,-490.0,0.00016438,2]
[366117440,1750073440089,-490.0,0.00016438,2]
[366117441,1750073440098,-386.06768237,0.00016438,2]
[366117442,1750073440107,-490.0,0.00016438,2]
[366117443,1750073440117,-490.0,0.00016438,2]
[366117444,1750073440126,-501.26,0.00016438,2]
[366117445,1750073440137,-571.34,0.00016438,2]
[366117446,1750073440146,-490.0,0.00016438,2]
[366117447,1750073440162,-490.0,0.00016438,2]
[366117448,1750073440172,-405.80420264,0.00016438,2]
[366117449,1750073440182,-490.0,0.00016438,2]
[366117450,1750073440192,-490.0,0.00016438,2]
[366117451,1750073440203,-628.59,0.00016438,2]
[366117452,1750073440213,-490.0,0.00016438,2]
[366117453,1750073440224,-491.400113,0.00016438,2]
[366117454,1750073440235,-490.0,0.00016438,2]
[366117455,1750073440245,-490.0,0.00016438,2]
[366117456,1750073440255,-500.0,0.00016438,2]
[366117457,1750073440265,-925.12,0.00016438,2]
[366117458,1750073440275,-490.0,0.00016438,2]
[366117459,1750073440286,-490.0,0.00016438,2]
[366117460,1750073440296,-490.0,0.00016438,2]
[366117461,1750073440306,-1101.63,0.00016438,2]
[366117462,1750073440319,-1396.86,0.00016438,2]
[366117463,1750073440329,-490.0,0.00016438,2]
[366117464,1750073440339,-490.0,0.00016438,2]
[366117465,1750073440349,-490.0,0.00016438,2]
[366117466,1750073440359,-490.0,0.00016438,2]
[366117467,1750073440369,-490.0,0.00016438,2]
[366117468,1750073440379,-993.49,0.00016438,2]
[366117469,1750073440392,-490.0,0.00016438,2]
[366117470,1750073440404,-305.11740735,0.00016438,2]
[366117471,1750073440414,-490.0,0.00016438,2]
[366117472,1750073440423,-490.0,0.00016438,2]
[366117473,1750073440433,-490.0,0.00016438,2]
[366117474,1750073440442,-490.0,0.00016438,2]
[366117475,1750073440452,-490.0,0.00016438,2]
[366117476,1750073440461,-493.52618405,0.00016438,2]
[366117477,1750073440471,-490.0,0.00016438,2]
[366117478,1750073440480,-1164.66,0.00016438,2]
[366117479,1750073440490,-490.0,0.00016438,2]
[366117480,1750073440500,-903.73,0.00016438,2]
[366117481,1750073440510,-490.0,0.00016438,2]
[366117482,1750073440519,-490.0,0.00016438,2]
[366117483,1750073440528,-490.0,0.00016438,2]
[366117484,1750073440538,-598.4,0.00016438,2]
[366117485,1750073440548,-754.6,0.00016438,2]
[366117486,1750073440558,-490.0,0.00016438,2]
[366117487,1750073440568,-490.0,0.00016438,2]
[366117488,1750073440578,-842.9,0.00016438,2]
[366117489,1750073440588,-537.08,0.00016438,2]
[366117490,1750073440597,-490.0,0.00016438,2]
[366117491,1750073440613,-1083.68,0.00016438,2]
[366117492,1750073440622,-490.0,0.00016438,2]
[366117493,1750073440632,-490.0,0.00016438,2]
[366117494,1750073440643,-490.0,0.00016438,2]
[366117495,1750073440653,-503.53,0.00016438,2]
[366117496,1750073440663,-490.0,0.00016438,2]
[366117497,1750073440673,-490.0,0.00016438,2]
[366117498,1750073440683,-490.0,0.00016438,2]
[366117499,1750073440693,-543.0,0.00016438,2]
[366117500,1750073440703,-490.0,0.00016438,2]
[366117501,1750073440713,-490.0,0.00016438,2]
[366117502,1750073440723,-526.71,0.00016438,2]
[366117503,1750073440736,-490.0,0.00016438,2]
[366117504,1750073440746,-490.0,0.00016438,2]
[366117505,1750073440756,-490.0,0.00016438,2]
[366117506,1750073440767,-490.0,0.00016438,2]
[366117507,1750073440778,-494.73,0.00016438,2]
[366117508,1750073440788,-722.98,0.00016438,2]
[366117509,1750073440798,-490.0,0.00016438,2]
[366117510,1750073440808,-945.23,0.00016438,2]
[366117511,1750073440818,-1123.92,0.00016438,2]
[366117512,1750073440829,-492.71192577,0.00016438,2]
[366117513,1750073440839,-490.0,0.00016438,2]
[366117514,1750073440849,-490.0,0.00016438,2]
[366117515,1750073440859,-490.0,0.00016438,2]
[366117516,1750073440869,-881.79,0.00016438,2]
[366117517,1750073440878,-1239.15,0.00016438,2]
[366117518,1750073440889,-1058.17,0.00016438,2]
[366117519,1750073440899,-490.0,0.00016438,2]
[366117520,1750073440909,-490.0,0.00016438,2]
[366117521,1750073440918,-490.0,0.00016438,2]
[366117522,1750073440928,-490.0,0.00016438,2]
[366117523,1750073440938,-854.78,0.00016438,2]
[366117524,1750073440948,-490.0,0.00016438,2]
[366117525,1750073440958,-1203.28,0.00016438,2]
[366117526,1750073440967,-1089.39,0.00016438,2]
[366117527,1750073440977,-490.0,0.00016438,2]
[366117528,1750073440986,-490.0,0.00016438,2]
[366117529,1750073440996,-490.0,0.00016438,2]
[366117530,1750073441007,-716.44,0.00016438,2]
[366117531,1750073441016,-1058.87,0.00016438,2]
[366117532,1750073441026,-490.0,0.00016438,2]
[366117533,1750073441036,-1253.66,0.00016438,2]
[366117534,1750073441046,-742.48,0.00016438,2]
[366117535,1750073441056,-490.0,0.00016438,2]
[366117536,1750073441066,-660.95,0.00016438,2]
[366117537,1750073441076,-1057.43,0.00016438,2]
[366117538,1750073441086,-490.0,0.00016438,2]
[366117539,1750073441095,-559.3,0.00016438,2]
[366117540,1750073441106,-500.0,0.00016438,2]
[366117541,1750073441116,-490.0,0.00016438,2]
[366117542,1750073441126,-500.0,0.00016438,2]
[366117543,1750073441135,-480.75050489,0.00016438,2]
[366117544,1750073441145,-229.42082329,0.00016438,2]
[366117545,1750073441155,-783.28,0.00016438,2]
[366117546,1750073441166,-490.0,0.00016438,2]
[366117547,1750073441176,-490.0,0.00016438,2]
[366117548,1750073441186,-490.0,0.00016438,2]
[366117549,1750073441196,-490.0,0.00016438,2]
[366117550,1750073441206,-765.53,0.00016438,2]
[366117551,1750073441216,-836.55,0.00016438,2]
[366117552,1750073441226,-490.0,0.00016438,2]
[366117553,1750073441236,-490.0,0.00016438,2]
[366117554,1750073441246,-737.72,0.00016438,2]
[366117555,1750073441255,-544.4,0.00016438,2]
[366117556,1750073441266,-585.66,0.00016438,2]
[366117557,1750073441276,-490.0,0.00016438,2]
[366117558,1750073441286,-490.0,0.00016438,2]
[366117559,1750073441296,-516.18,0.00016438,2]
[366117560,1750073441306,-490.0,0.00016438,2]
[366117561,1750073441318,-490.0,0.00016438,2]
[366117562,1750073441328,-490.0,0.00016438,2]
[366117563,1750073441337,-490.0,0.00016438,2]
[366117564,1750073441347,-494.47,0.00016438,2]
[366117565,1750073441356,-582.82,0.00016438,2]
[366117566,1750073441366,-490.0,0.00016438,2]
[366117567,1750073441375,-490.0,0.00016438,2]
[366117568,1750073441386,-490.0,0.00016438,2]
[366117569,1750073441396,-511.9,0.00016438,2]
[366117570,1750073441406,-490.0,0.00016438,2]
[366117571,1750073441415,-151.0,0.00016438,2]
[366117572,1750073441425,-490.0,0.00016438,2]
[366117573,1750073441435,-1721.39,0.00016438,2]
[366117574,1750073441445,-678.12,0.00016438,2]
[366117575,1750073441455,-1000.24,0.00016438,2]
[366117576,1750073441464,-490.0,0.00016438,2]
[366117577,1750073441474,-490.0,0.00016438,2]
[366117578,1750073441484,-490.0,0.00016438,2]
[366117579,1750073441493,-633.99,0.00016438,2]
[366117580,1750073441503,-490.0,0.00016438,2]
[366117581,1750073441513,-1029.15,0.00016438,2]
[366117582,1750073441523,-490.0,0.00016438,2]
[366117583,1750073441533,-490.0,0.00016438,2]
[366117584,1750073441543,-151.0,0.00016438,2]
[366117585,1750073441553,-151.0,0.00016438,2]
[366117586,1750073441563,-603.99,0.00016438,2]
[366117587,1750073441584,-490.0,0.00016438,2]
[366117588,1750073441599,-490.0,0.00016438,2]
[366117589,1750073441612,-1188.19,0.00016438,2]
[366117590,1750073441622,-868.39,0.00016438,2]
[366117591,1750073441632,-490.0,0.00016438,2]
[366117592,1750073441643,-490.0,0.00016438,2]
[366117593,1750073441654,-1377.77,0.00016438,2]
[366117594,1750073441664,-722.87,0.00016438,2]
[366117595,1750073441675,-490.0,0.00016438,2]
[366117596,1750073441684,-490.0,0.00016438,2]
[366117597,1750073441695,-490.0,0.00016438,2]
[366117598,1750073441705,-490.0,0.00016438,2]
[366117599,1750073441715,-490.0,0.00016438,2]
[366117600,1750073441724,-490.0,0.00016438,2]
[366117601,1750073441734,-490.0,0.00016438,2]
[366117602,1750073441743,-675.85,0.00016438,2]
[366117603,1750073441754,-490.0,0.00016438,2]
[366117604,1750073441764,-1278.21,0.00016438,2]
[366117605,1750073441774,-1248.71,0.00016438,2]
[366117606,1750073441784,-490.0,0.00016438,2]
[366117607,1750073441795,-151.0,0.00016438,2]
[366117608,1750073441804,-660.48,0.00016438,2]
[366117609,1750073441814,-888.79,0.00016438,2]
[366117610,1750073441824,-490.0,0.00016438,2]
[366117611,1750073441834,-862.38,0.00016438,2]
[366117612,1750073441844,-490.0,0.00016438,2]
[366117613,1750073441854,-490.0,0.00016438,2]
[366117614,1750073441864,-490.0,0.00016438,2]
[366117615,1750073441873,-490.0,0.00016438,2]
[366117616,1750073441883,-568.0,0.00016438,2]
[366117617,1750073441893,-490.0,0.00016438,2]
[366117618,1750073441905,-524.29,0.00016438,2]
[366117619,1750073441915,-490.0,0.00016438,2]
[366117620,1750073441924,-490.0,0.00016438,2]
[366117621,1750073441934,-490.0,0.00016438,2]
[366117622,1750073441944,-490.0,0.00016438,2]
[366117623,1750073441954,-878.34,0.00016438,2]
[366117624,1750073441964,-1800.01,0.00016438,2]
[366117625,1750073441975,-490.0,0.00016438,2]
[366117626,1750073441986,-490.0,0.00016438,2]
[366117627,1750073441998,-977.91,0.00016438,2]
[366117628,1750073442010,-151.0,0.00016438,2]
[366117629,1750073442028,-866.69,0.00016438,2]
[366117630,1750073442040,-490.0,0.00016438,2]
[366117631,1750073442051,-490.0,0.00016438,2]
[366117632,1750073442064,-1516.01,0.00016438,2]
[366117633,1750073442076,-490.0,0.00016438,2]
[366117634,1750073442087,-1851.71,0.00016438,2]
[366117635,1750073442098,-843.66,0.00016438,2]
[366117636,1750073442109,-490.0,0.00016438,2]
[366117637,1750073442119,-490.0,0.00016438,2]
[366117638,1750073442130,-490.0,0.00016438,2]
[366117639,1750073442143,-1131.16,0.00016438,2]
[366117640,1750073442154,-1116.93,0.00016438,2]
[366117641,1750073442165,-980.18,0.00016438,2]
[366117642,1750073442176,-573.42,0.00016438,2]
[366117643,1750073442188,-490.0,0.00016438,2]
[366117644,1750073442198,-1422.89,0.00016438,2]
[366117645,1750073442209,-843.36,0.00016438,2]
[366117646,1750073442219,-151.0,0.00016438,2]
[366117647,1750073442229,-490.0,0.00016438,2]
[366117648,1750073442240,-490.0,0.00016438,2]
[366117649,1750073442250,-490.0,0.00016438,2]
[366117650,1750073442260,-2092.87,0.00016438,2]
[366117651,1750073442271,-494.46471504,0.00016438,2]
[366117652,1750073442280,-490.0,0.00016438,2]
[366117653,1750073442291,-490.0,0.00016438,2]
[366117654,1750073442301,-1203.4,0.00016438,2]
[366117655,1750073442312,-672.91,0.00016438,2]
[366117656,1750073442325,-516.55,0.00016438,2]
[366117657,1750073442335,-1086.6,0.00016438,2]
[366117658,1750073442345,-302.942155,0.00016438,2]
[366117659,1750073442355,-490.0,0.00016438,2]
[366117660,1750073442367,-1218.92,0.00016438,2]
[366117661,1750073442376,-490.0,0.00016438,2]
[366117662,1750073442388,-425.595712,0.00016438,2]
[366117663,1750073442401,-302.942155,0.00016438,2]
[366117664,1750073442411,-151.0,0.00016438,2]
[366117665,1750073442421,-490.0,0.00016438,2]
[366117667,1750073442432,-490.0,0.00016438,2]
[366117668,1750073442442,-490.0,0.00016438,2]
[366117669,1750073442453,-655.46,0.00016438,2]
[366117670,1750073442463,-425.595712,0.00016438,2]
[366117671,1750073442479,-501.55,0.00016438,2]
[366117672,1750073442490,-1813.9,0.00016438,2]
[366117673,1750073442500,-699.93,0.00016438,2]
[366117675,1750073442511,-754.64,0.00016438,2]
[366117677,1750073442521,-756.4,0.00016438,2]
[366117679,1750073442531,-490.0,0.00016438,2]
[366117681,1750073442543,-1206.92,0.00016438,2]
[366117683,1750073442555,-1168.11,0.00016438,2]
[366117685,1750073442565,-782.7,0.00016438,2]
[366117686,1750073442576,-490.0,0.00016438,2]
[366117687,1750073442586,-490.0,0.00016438,2]